[Event "Late-Titled-Tuesday-Blitz-January-30-2024"]
[Site "Chess.com"]
[Date "2024.01.30"]
[Round "2"]
[White "Lady_Nika"]
[Black "MikaelyanArman"]
[Result "0-1"]
[WhiteElo "2582"]
[BlackElo "2865"]
[TimeControl "180+1"]
[EndTime "14:17:34 PST"]
[Termination "MikaelyanArman won on time"]

1. d4 {[%clk 0:03:00.9]} 1... Nf6 {[%clk 0:02:59.6]} 2. e3 {[%clk 0:03:01.7]}
2... g6 {[%clk 0:02:57]} 3. f4 {[%clk 0:02:59]} 3... Bg7 {[%clk 0:02:55.8]} 4.
Nf3 {[%clk 0:02:59.9]} 4... d6 {[%clk 0:02:52.8]} 5. c3 {[%clk 0:03:00]} 5...
O-O {[%clk 0:02:48]} 6. Bd3 {[%clk 0:02:59.8]} 6... c5 {[%clk 0:02:48.2]} 7. O-O
{[%clk 0:02:59.7]} 7... Nc6 {[%clk 0:02:45.6]} 8. Bc2 {[%clk 0:02:59.7]} 8...
cxd4 {[%clk 0:02:27]} 9. exd4 {[%clk 0:02:55.7]} 9... e5 {[%clk 0:02:19.3]} 10.
fxe5 {[%clk 0:02:52.4]} 10... dxe5 {[%clk 0:02:19.1]} 11. dxe5 {[%clk
0:02:38.4]} 11... Qb6+ {[%clk 0:02:10.2]} 12. Nd4 {[%clk 0:02:24.3]} 12... Nxe5
{[%clk 0:02:05.9]} 13. Kh1 {[%clk 0:02:16.9]} 13... Bg4 {[%clk 0:02:03.4]} 14.
Qe1 {[%clk 0:02:14.4]} 14... Rae8 {[%clk 0:02:03.5]} 15. Qh4 {[%clk 0:02:13.9]}
15... Nh5 {[%clk 0:01:57.6]} 16. b3 {[%clk 0:01:56.6]} 16... Rc8 {[%clk
0:01:27.6]} 17. a4 {[%clk 0:01:26.4]} 17... Rfe8 {[%clk 0:01:23.8]} 18. a5
{[%clk 0:01:25.5]} 18... Qa6 {[%clk 0:01:24.3]} 19. Qf2 {[%clk 0:01:15.8]} 19...
Nd3 {[%clk 0:01:03.2]} 20. Bxd3 {[%clk 0:00:57.4]} 20... Qxd3 {[%clk 0:01:04.1]}
21. Ba3 {[%clk 0:00:30]} 21... f5 {[%clk 0:00:59.9]} 22. Ra2 {[%clk 0:00:27.4]}
22... Nf6 {[%clk 0:00:55.5]} 23. Rd2 {[%clk 0:00:25.8]} 23... Ne4 {[%clk
0:00:53.6]} 24. Qf4 {[%clk 0:00:13.7]} 24... Nxd2 {[%clk 0:00:53.5]} 25. Nxd2
{[%clk 0:00:12.2]} 25... Qxc3 {[%clk 0:00:48.3]} 26. Nb5 {[%clk 0:00:04.6]}
26... Qd3 {[%clk 0:00:46.6]} 27. Nd6 {[%clk 0:00:04.3]} 27... Be5 {[%clk
0:00:46.9]} 28. Qb4 {[%clk 0:00:01.3]} 28... Bxd6 {[%clk 0:00:23.9]} 29. Qxd6
{[%clk 0:00:02.2]} 29... Qxd6 {[%clk 0:00:24.1]} 30. Bxd6 {[%clk 0:00:02.8]}
30... Rc2 {[%clk 0:00:20.4]} 31. Bf4 {[%clk 0:00:02.8]} 31... Re2 {[%clk
0:00:19]} 32. h3 {[%clk 0:00:01.7]} 32... Bh5 {[%clk 0:00:16.6]} 0-1

[Event "Late-Titled-Tuesday-Blitz-January-30-2024"]
[Site "Chess.com"]
[Date "2024.01.30"]
[Round "2"]
[White "BestestBP"]
[Black "ninguno46"]
[Result "0-1"]
[WhiteElo "2263"]
[BlackElo "2519"]
[TimeControl "180+1"]
[EndTime "14:17:34 PST"]
[Termination "ninguno46 won by checkmate"]

1. c4 {[%clk 0:03:00.9]} 1... e5 {[%clk 0:02:59.3]} 2. Nc3 {[%clk 0:03:00.7]}
2... Nf6 {[%clk 0:02:59.8]} 3. Nf3 {[%clk 0:03:01.2]} 3... Nc6 {[%clk
0:02:59.3]} 4. e4 {[%clk 0:03:01.9]} 4... Bb4 {[%clk 0:02:59.1]} 5. a3 {[%clk
0:03:02.3]} 5... Bxc3 {[%clk 0:02:58.7]} 6. bxc3 {[%clk 0:02:59.5]} 6... Nxe4
{[%clk 0:02:45.2]} 7. Qe2 {[%clk 0:02:55.8]} 7... Nf6 {[%clk 0:02:45]} 8. Nxe5
{[%clk 0:02:55.4]} 8... O-O {[%clk 0:02:44.8]} 9. Ng4 {[%clk 0:02:15.3]} 9...
Nxg4 {[%clk 0:02:33.5]} 10. Qxg4 {[%clk 0:02:16.2]} 10... d5 {[%clk 0:02:33.8]}
11. Qf3 {[%clk 0:02:14.5]} 11... Re8+ {[%clk 0:02:32.4]} 12. Be2 {[%clk
0:02:14.8]} 12... Ne5 {[%clk 0:01:46]} 13. Qxd5 {[%clk 0:02:07.1]} 13... Nd3+
{[%clk 0:01:38.2]} 14. Kf1 {[%clk 0:02:07.2]} 14... Bg4 {[%clk 0:01:29.4]} 15.
Bxd3 {[%clk 0:01:25.2]} 15... Qe7 {[%clk 0:01:28.5]} 16. Qe4 {[%clk 0:01:14.2]}
16... Qh4 {[%clk 0:01:25.9]} 17. Qxh7+ {[%clk 0:00:59.9]} 17... Qxh7 {[%clk
0:01:24.4]} 18. Bxh7+ {[%clk 0:01:00.8]} 18... Kxh7 {[%clk 0:01:25]} 19. f3
{[%clk 0:00:54.5]} 19... Bf5 {[%clk 0:01:23.3]} 20. d4 {[%clk 0:00:53.8]} 20...
Bd3+ {[%clk 0:01:23.3]} 21. Kf2 {[%clk 0:00:54.2]} 21... Re2+ {[%clk 0:01:22.7]}
22. Kg3 {[%clk 0:00:54.2]} 22... Bxc4 {[%clk 0:01:20.7]} 23. Bf4 {[%clk
0:00:53.7]} 23... Rae8 {[%clk 0:01:17]} 24. h4 {[%clk 0:00:44.7]} 24... R8e6
{[%clk 0:01:08.9]} 25. h5 {[%clk 0:00:44.7]} 25... c6 {[%clk 0:01:05.5]} 26.
Rab1 {[%clk 0:00:38.5]} 26... b5 {[%clk 0:01:04.8]} 27. Ra1 {[%clk 0:00:36.3]}
27... a5 {[%clk 0:01:01.8]} 28. a4 {[%clk 0:00:34.9]} 28... b4 {[%clk
0:00:55.4]} 29. cxb4 {[%clk 0:00:35.8]} 29... axb4 {[%clk 0:00:55.2]} 30. a5
{[%clk 0:00:36.3]} 30... Ba6 {[%clk 0:00:55.3]} 31. Rab1 {[%clk 0:00:33.3]}
31... Ra2 {[%clk 0:00:46.1]} 32. Rxb4 {[%clk 0:00:32.9]} 32... Rxa5 {[%clk
0:00:45.6]} 33. Rb8 {[%clk 0:00:14.5]} 33... Ra2 {[%clk 0:00:43]} 34. Rf8 {[%clk
0:00:13.9]} 34... f6 {[%clk 0:00:38.6]} 35. h6 {[%clk 0:00:10.7]} 35... g5
{[%clk 0:00:38.2]} 36. Rf7+ {[%clk 0:00:10.5]} 36... Kg6 {[%clk 0:00:37.6]} 37.
Rg7+ {[%clk 0:00:10.5]} 37... Kf5 {[%clk 0:00:37.3]} 38. Bc7 {[%clk 0:00:11.1]}
38... Ree2 {[%clk 0:00:36.6]} 39. h7 {[%clk 0:00:09.7]} 39... Rxg2+ {[%clk
0:00:36]} 40. Kh3 {[%clk 0:00:10.2]} 40... Bf1 {[%clk 0:00:33.9]} 41. h8=Q
{[%clk 0:00:02.8]} 41... Rh2+ {[%clk 0:00:32.8]} 42. Kg3 {[%clk 0:00:01.2]}
42... Rag2# {[%clk 0:00:33.4]} 0-1

[Event "Late-Titled-Tuesday-Blitz-January-30-2024"]
[Site "Chess.com"]
[Date "2024.01.30"]
[Round "2"]
[White "Elprofessor21"]
[Black "Hikaru"]
[Result "0-1"]
[WhiteElo "2682"]
[BlackElo "3290"]
[TimeControl "180+1"]
[EndTime "14:17:35 PST"]
[Termination "Hikaru won by checkmate"]

1. d4 {[%clk 0:02:58]} 1... a6 {[%clk 0:02:59.5]} 2. c4 {[%clk 0:02:56.2]} 2...
b5 {[%clk 0:02:59.7]} 3. e3 {[%clk 0:02:49.4]} 3... bxc4 {[%clk 0:02:58.3]} 4.
Bxc4 {[%clk 0:02:48.4]} 4... e6 {[%clk 0:02:58.9]} 5. Nf3 {[%clk 0:02:48.6]}
5... d5 {[%clk 0:02:59.3]} 6. Bd3 {[%clk 0:02:46]} 6... Nf6 {[%clk 0:02:57.8]}
7. O-O {[%clk 0:02:46.1]} 7... Nbd7 {[%clk 0:02:58.5]} 8. b3 {[%clk 0:02:45.2]}
8... c5 {[%clk 0:02:58.9]} 9. Bb2 {[%clk 0:02:45.5]} 9... Bb7 {[%clk 0:02:59.4]}
10. Nbd2 {[%clk 0:02:45.2]} 10... Bd6 {[%clk 0:02:59.6]} 11. Ne5 {[%clk
0:02:43.6]} 11... O-O {[%clk 0:02:58]} 12. Rc1 {[%clk 0:02:41.2]} 12... Rc8
{[%clk 0:02:57.5]} 13. Bb1 {[%clk 0:02:23]} 13... cxd4 {[%clk 0:02:57.1]} 14.
Rxc8 {[%clk 0:02:21.2]} 14... Qxc8 {[%clk 0:02:55.6]} 15. exd4 {[%clk 0:02:19]}
15... Qc7 {[%clk 0:02:50.3]} 16. Qe2 {[%clk 0:02:15.7]} 16... Rc8 {[%clk
0:02:50.1]} 17. h3 {[%clk 0:02:05.4]} 17... Qb6 {[%clk 0:02:50]} 18. Re1 {[%clk
0:01:56.7]} 18... Bf8 {[%clk 0:02:40.1]} 19. Qd3 {[%clk 0:01:33]} 19... g6
{[%clk 0:02:34.9]} 20. Ndf3 {[%clk 0:01:22.2]} 20... Rc7 {[%clk 0:02:22.4]} 21.
Qe3 {[%clk 0:01:18.5]} 21... Nxe5 {[%clk 0:02:12]} 22. Nxe5 {[%clk 0:01:13.1]}
22... Nd7 {[%clk 0:02:08.6]} 23. Nf3 {[%clk 0:00:49.6]} 23... a5 {[%clk
0:02:08.5]} 24. Rc1 {[%clk 0:00:42.7]} 24... a4 {[%clk 0:02:01.8]} 25. Rxc7
{[%clk 0:00:40.4]} 25... Qxc7 {[%clk 0:02:02.7]} 26. bxa4 {[%clk 0:00:40.4]}
26... Nb6 {[%clk 0:02:03]} 27. Ne5 {[%clk 0:00:31]} 27... Nxa4 {[%clk
0:02:01.4]} 28. Bc1 {[%clk 0:00:27.6]} 28... Nc3 {[%clk 0:01:58.7]} 29. Bd3
{[%clk 0:00:22]} 29... Nxa2 {[%clk 0:01:59.2]} 30. Bd2 {[%clk 0:00:22.3]} 30...
Nb4 {[%clk 0:01:58.5]} 31. h4 {[%clk 0:00:18]} 31... Nxd3 {[%clk 0:01:57.1]} 32.
Qxd3 {[%clk 0:00:18.9]} 32... h5 {[%clk 0:01:36.8]} 33. g4 {[%clk 0:00:18]}
33... hxg4 {[%clk 0:01:19.6]} 34. Nxg4 {[%clk 0:00:18.3]} 34... Bg7 {[%clk
0:01:18.6]} 35. Bg5 {[%clk 0:00:14.2]} 35... f5 {[%clk 0:01:18.6]} 36. Ne3
{[%clk 0:00:04.7]} 36... Qb6 {[%clk 0:01:13.2]} 37. Qe2 {[%clk 0:00:03.6]} 37...
Bxd4 {[%clk 0:01:08.8]} 38. Nxf5 {[%clk 0:00:02.9]} 38... gxf5 {[%clk
0:01:08.4]} 39. Qh5 {[%clk 0:00:03]} 39... Qb1+ {[%clk 0:00:50.6]} 40. Kh2
{[%clk 0:00:03.4]} 40... Be5+ {[%clk 0:00:51.3]} 41. f4 {[%clk 0:00:03.9]} 41...
Qc2+ {[%clk 0:00:49.9]} 42. Kh3 {[%clk 0:00:04.4]} 42... Qd3+ {[%clk 0:00:50.3]}
43. Kh2 {[%clk 0:00:04.8]} 43... Qd2+ {[%clk 0:00:50.9]} 44. Kh3 {[%clk
0:00:05.2]} 44... Qe3+ {[%clk 0:00:51.4]} 45. Kh2 {[%clk 0:00:05.6]} 45... Bxf4+
{[%clk 0:00:51.6]} 46. Kg2 {[%clk 0:00:04.4]} 46... d4+ {[%clk 0:00:51.7]} 47.
Kf1 {[%clk 0:00:04.7]} 47... Ba6+ {[%clk 0:00:49.2]} 48. Kg2 {[%clk 0:00:04.9]}
48... Qg3+ {[%clk 0:00:49.4]} 49. Kh1 {[%clk 0:00:04.4]} 49... Qh2# {[%clk
0:00:50.3]} 0-1

[Event "Late-Titled-Tuesday-Blitz-January-30-2024"]
[Site "Chess.com"]
[Date "2024.01.30"]
[Round "2"]
[White "INLOVEWITHF"]
[Black "dmitrijiIM"]
[Result "0-1"]
[WhiteElo "2596"]
[BlackElo "2907"]
[TimeControl "180+1"]
[EndTime "14:17:35 PST"]
[Termination "dmitrijiIM won by resignation"]

1. d4 {[%clk 0:02:54.9]} 1... Nf6 {[%clk 0:02:58.8]} 2. c3 {[%clk 0:02:55]} 2...
d5 {[%clk 0:02:51.1]} 3. Nf3 {[%clk 0:02:53.8]} 3... g6 {[%clk 0:02:39.4]} 4. g3
{[%clk 0:02:43.6]} 4... Bg7 {[%clk 0:02:39.2]} 5. Bg2 {[%clk 0:02:44.5]} 5...
O-O {[%clk 0:02:38.6]} 6. O-O {[%clk 0:02:45.4]} 6... c6 {[%clk 0:02:22.4]} 7.
Nbd2 {[%clk 0:02:42.9]} 7... Bf5 {[%clk 0:02:03.4]} 8. Nh4 {[%clk 0:02:36.6]}
8... Be6 {[%clk 0:01:35.6]} 9. Qb3 {[%clk 0:02:34.3]} 9... Qb6 {[%clk 0:01:32]}
10. a4 {[%clk 0:02:33.4]} 10... Nbd7 {[%clk 0:01:27.7]} 11. Qa3 {[%clk
0:02:31.5]} 11... Rfe8 {[%clk 0:01:25.7]} 12. a5 {[%clk 0:02:31]} 12... Qc7
{[%clk 0:01:25.7]} 13. Re1 {[%clk 0:02:30]} 13... g5 {[%clk 0:01:20.8]} 14. Nhf3
{[%clk 0:02:29.9]} 14... h6 {[%clk 0:01:21.4]} 15. e4 {[%clk 0:02:27.2]} 15...
dxe4 {[%clk 0:01:19.2]} 16. Nxe4 {[%clk 0:02:27.3]} 16... Nxe4 {[%clk
0:01:19.7]} 17. Rxe4 {[%clk 0:02:28.2]} 17... Bd5 {[%clk 0:01:20.3]} 18. Re1
{[%clk 0:02:27.7]} 18... e5 {[%clk 0:01:12]} 19. dxe5 {[%clk 0:02:25.8]} 19...
Bxf3 {[%clk 0:01:07.4]} 20. Bxf3 {[%clk 0:02:25.4]} 20... Nxe5 {[%clk
0:01:07.7]} 21. Kg2 {[%clk 0:02:14.4]} 21... Nxf3 {[%clk 0:01:03.5]} 22. Rxe8+
{[%clk 0:02:15.3]} 22... Rxe8 {[%clk 0:01:04.1]} 23. Kxf3 {[%clk 0:02:16.2]}
23... Qe5 {[%clk 0:00:49.1]} 24. Be3 {[%clk 0:02:15.3]} 24... Qd5+ {[%clk
0:00:45.4]} 25. Ke2 {[%clk 0:02:15.4]} 25... Rd8 {[%clk 0:00:44]} 26. Qa4 {[%clk
0:02:00.3]} 26... h5 {[%clk 0:00:41.1]} 27. Rd1 {[%clk 0:01:57.6]} 27... Qxd1+
{[%clk 0:00:30.9]} 28. Qxd1 {[%clk 0:01:58.5]} 28... Rxd1 {[%clk 0:00:31.4]} 29.
Kxd1 {[%clk 0:01:59.4]} 29... g4 {[%clk 0:00:30.3]} 30. Bxa7 {[%clk 0:01:59.5]}
30... f5 {[%clk 0:00:30.8]} 31. b4 {[%clk 0:01:58.2]} 31... Bxc3 {[%clk
0:00:29.9]} 32. Bc5 {[%clk 0:01:56]} 32... Kf7 {[%clk 0:00:28.9]} 33. Ke2 {[%clk
0:01:56.5]} 33... Ke6 {[%clk 0:00:27.5]} 34. Kd3 {[%clk 0:01:57.1]} 34... Bf6
{[%clk 0:00:26.5]} 35. Kc4 {[%clk 0:01:54.1]} 35... Bd8 {[%clk 0:00:24.5]} 36.
Bd4 {[%clk 0:01:44.4]} 36... h4 {[%clk 0:00:24.1]} 37. Be3 {[%clk 0:01:37]}
37... h3 {[%clk 0:00:24]} 38. Bd4 {[%clk 0:01:26.9]} 38... Kd6 {[%clk 0:00:23]}
39. Be3 {[%clk 0:01:24.9]} 39... Ke5 {[%clk 0:00:23]} 40. Kd3 {[%clk 0:01:23.5]}
40... Kd5 {[%clk 0:00:23]} 41. Bd2 {[%clk 0:01:22.6]} 41... Be7 {[%clk
0:00:21.7]} 42. Be1 {[%clk 0:01:21.2]} 42... Bf6 {[%clk 0:00:21.7]} 43. Bd2
{[%clk 0:01:21.4]} 43... Bd4 {[%clk 0:00:21.8]} 44. Be1 {[%clk 0:01:19.5]} 44...
c5 {[%clk 0:00:20.5]} 45. b5 {[%clk 0:01:17]} 45... c4+ {[%clk 0:00:20.9]} 46.
Kc2 {[%clk 0:01:16.8]} 46... Kc5 {[%clk 0:00:18.5]} 47. a6 {[%clk 0:01:16.5]}
47... bxa6 {[%clk 0:00:19.4]} 48. bxa6 {[%clk 0:01:17.1]} 48... Kb6 {[%clk
0:00:19.8]} 0-1

[Event "Late-Titled-Tuesday-Blitz-January-30-2024"]
[Site "Chess.com"]
[Date "2024.01.30"]
[Round "2"]
[White "PawnEatingZombie"]
[Black "WindWhistler11"]
[Result "0-1"]
[WhiteElo "2146"]
[BlackElo "2479"]
[TimeControl "180+1"]
[EndTime "14:17:39 PST"]
[Termination "WindWhistler11 won by resignation"]

1. e4 {[%clk 0:03:00.9]} 1... e6 {[%clk 0:02:58.4]} 2. d4 {[%clk 0:03:00]} 2...
d5 {[%clk 0:02:58.9]} 3. exd5 {[%clk 0:03:00.9]} 3... exd5 {[%clk 0:02:59]} 4.
Bf4 {[%clk 0:03:01.6]} 4... Ne7 {[%clk 0:02:59.1]} 5. Nc3 {[%clk 0:02:58]} 5...
Bf5 {[%clk 0:02:53.9]} 6. Qd2 {[%clk 0:02:55.2]} 6... Qd7 {[%clk 0:02:52.2]} 7.
f3 {[%clk 0:02:53.7]} 7... f6 {[%clk 0:02:51.4]} 8. g4 {[%clk 0:02:52.6]} 8...
Be6 {[%clk 0:02:46.8]} 9. O-O-O {[%clk 0:02:46.4]} 9... Nbc6 {[%clk 0:02:40.9]}
10. h4 {[%clk 0:02:45.1]} 10... Nc8 {[%clk 0:02:37.4]} 11. h5 {[%clk 0:02:44.6]}
11... Nb6 {[%clk 0:02:35]} 12. Nh3 {[%clk 0:02:35]} 12... Bb4 {[%clk 0:02:23.3]}
13. Nf2 {[%clk 0:02:17.1]} 13... Na4 {[%clk 0:02:16.8]} 14. Bb5 {[%clk
0:02:02.3]} 14... Nxc3 {[%clk 0:02:05.9]} 15. bxc3 {[%clk 0:02:02.3]} 15... Ba3+
{[%clk 0:02:04.7]} 16. Kb1 {[%clk 0:02:02]} 16... a6 {[%clk 0:02:04]} 17. Ba4
{[%clk 0:01:56.1]} 17... b5 {[%clk 0:02:03.7]} 18. Bb3 {[%clk 0:01:56.5]} 18...
a5 {[%clk 0:02:03.6]} 19. Rhe1 {[%clk 0:01:42.2]} 19... a4 {[%clk 0:01:55.9]}
20. Qe2 {[%clk 0:01:32.1]} 20... Kf7 {[%clk 0:01:54.2]} 21. g5 {[%clk 0:01:17]}
21... axb3 {[%clk 0:01:38.5]} 22. g6+ {[%clk 0:01:15.3]} 22... hxg6 {[%clk
0:01:37.2]} 23. hxg6+ {[%clk 0:01:16.2]} 23... Ke7 {[%clk 0:01:36.7]} 24. cxb3
{[%clk 0:01:09.1]} 24... Rhe8 {[%clk 0:01:27.2]} 25. Nd3 {[%clk 0:01:05.6]}
25... Kd8 {[%clk 0:01:26]} 26. b4 {[%clk 0:00:39.8]} 26... Bf5 {[%clk
0:01:16.4]} 27. Qxe8+ {[%clk 0:00:38.6]} 27... Qxe8 {[%clk 0:01:15.9]} 28. Rxe8+
{[%clk 0:00:39]} 28... Kxe8 {[%clk 0:01:16.3]} 29. Bxc7 {[%clk 0:00:34.7]} 29...
Kd7 {[%clk 0:01:13.1]} 30. Bb6 {[%clk 0:00:25.7]} 30... Re8 {[%clk 0:01:12.9]}
31. Kc2 {[%clk 0:00:23.7]} 31... Bxb4 {[%clk 0:01:01.6]} 32. Kb3 {[%clk
0:00:17.8]} 32... Bxd3 {[%clk 0:00:46.8]} 33. Rxd3 {[%clk 0:00:17.4]} 33... Bd6
{[%clk 0:00:44.9]} 34. Rd1 {[%clk 0:00:15.8]} 34... Rb8 {[%clk 0:00:31.3]} 35.
Bc5 {[%clk 0:00:13.9]} 35... b4 {[%clk 0:00:29.5]} 36. cxb4 {[%clk 0:00:13]}
36... Nxb4 {[%clk 0:00:28.7]} 37. Bxd6 {[%clk 0:00:10.6]} 37... Kxd6 {[%clk
0:00:27.2]} 38. a3 {[%clk 0:00:09.3]} 38... Nc6+ {[%clk 0:00:24.4]} 39. Kc3
{[%clk 0:00:09.5]} 39... Ra8 {[%clk 0:00:24.7]} 40. Kb3 {[%clk 0:00:07.2]} 40...
Na5+ {[%clk 0:00:20.5]} 41. Kc3 {[%clk 0:00:07.1]} 41... Nc4 {[%clk 0:00:21.4]}
42. Rh1 {[%clk 0:00:05.5]} 42... Rxa3+ {[%clk 0:00:21.1]} 0-1

[Event "Late-Titled-Tuesday-Blitz-January-30-2024"]
[Site "Chess.com"]
[Date "2024.01.30"]
[Round "2"]
[White "powermove"]
[Black "Schattman"]
[Result "0-1"]
[WhiteElo "2065"]
[BlackElo "2456"]
[TimeControl "180+1"]
[EndTime "14:17:39 PST"]
[Termination "Schattman won on time"]

1. d4 {[%clk 0:03:00.9]} 1... g6 {[%clk 0:03:00.2]} 2. e4 {[%clk 0:02:59.2]}
2... Bg7 {[%clk 0:03:00.1]} 3. Nf3 {[%clk 0:02:50.3]} 3... d6 {[%clk 0:03:00.2]}
4. Bd3 {[%clk 0:02:45.7]} 4... Nf6 {[%clk 0:02:58.8]} 5. h3 {[%clk 0:02:43.4]}
5... O-O {[%clk 0:02:58.4]} 6. O-O {[%clk 0:02:04.3]} 6... Nc6 {[%clk
0:02:58.2]} 7. c3 {[%clk 0:01:55.9]} 7... e5 {[%clk 0:02:57.5]} 8. d5 {[%clk
0:01:52.3]} 8... Ne7 {[%clk 0:02:53.1]} 9. c4 {[%clk 0:01:48.2]} 9... c5 {[%clk
0:02:49.8]} 10. dxc6 {[%clk 0:01:45.3]} 10... bxc6 {[%clk 0:02:48]} 11. Nc3
{[%clk 0:01:37.8]} 11... h6 {[%clk 0:02:47.5]} 12. Qe2 {[%clk 0:01:26.4]} 12...
Be6 {[%clk 0:02:45.1]} 13. b3 {[%clk 0:01:24.9]} 13... Qa5 {[%clk 0:02:33.6]}
14. Bd2 {[%clk 0:01:18.9]} 14... Qc7 {[%clk 0:02:29.8]} 15. Rac1 {[%clk
0:01:17.8]} 15... Nh5 {[%clk 0:02:19.1]} 16. Be3 {[%clk 0:01:10.8]} 16... Rae8
{[%clk 0:02:11.9]} 17. Qd2 {[%clk 0:01:09.2]} 17... Kh7 {[%clk 0:02:11]} 18. g4
{[%clk 0:01:01.1]} 18... Nf6 {[%clk 0:01:56.7]} 19. Kg2 {[%clk 0:01:00.6]} 19...
Nfg8 {[%clk 0:01:44.9]} 20. g5 {[%clk 0:00:54.5]} 20... h5 {[%clk 0:01:44.5]}
21. Nh4 {[%clk 0:00:45.7]} 21... Qb8 {[%clk 0:01:34.7]} 22. f4 {[%clk
0:00:44.4]} 22... d5 {[%clk 0:01:29.2]} 23. cxd5 {[%clk 0:00:27.8]} 23... cxd5
{[%clk 0:01:28.9]} 24. Bc5 {[%clk 0:00:20.1]} 24... Rc8 {[%clk 0:01:18]} 25.
Bxe7 {[%clk 0:00:16.9]} 25... Nxe7 {[%clk 0:01:18.9]} 26. f5 {[%clk 0:00:16.4]}
26... dxe4 {[%clk 0:01:14.7]} 27. Bxe4 {[%clk 0:00:13]} 27... Rfd8 {[%clk
0:01:07.6]} 28. Qe2 {[%clk 0:00:10.2]} 28... Bd5 {[%clk 0:01:02.4]} 29. Nxd5
{[%clk 0:00:08.8]} 29... Nxd5 {[%clk 0:01:02.3]} 30. fxg6+ {[%clk 0:00:09]}
30... fxg6 {[%clk 0:00:41.7]} 31. Bxg6+ {[%clk 0:00:08.1]} 31... Kg8 {[%clk
0:00:42]} 32. Qxh5 {[%clk 0:00:08]} 32... Nf4+ {[%clk 0:00:36.7]} 33. Rxf4
{[%clk 0:00:08]} 33... Rd2+ {[%clk 0:00:36.6]} 34. Rf2 {[%clk 0:00:07.1]} 34...
Qb7+ {[%clk 0:00:29.1]} 35. Kg3 {[%clk 0:00:05.4]} 35... Rxf2 {[%clk 0:00:19.8]}
36. Qh7+ {[%clk 0:00:03]} 36... Kf8 {[%clk 0:00:20.3]} 0-1

[Event "Late-Titled-Tuesday-Blitz-January-30-2024"]
[Site "Chess.com"]
[Date "2024.01.30"]
[Round "2"]
[White "TigrVShlyape"]
[Black "jsdbv18"]
[Result "1-0"]
[WhiteElo "2931"]
[BlackElo "2602"]
[TimeControl "180+1"]
[EndTime "14:17:41 PST"]
[Termination "TigrVShlyape won by resignation"]

1. e4 {[%clk 0:03:00.9]} 1... c5 {[%clk 0:02:59.8]} 2. Nf3 {[%clk 0:03:00.1]}
2... d6 {[%clk 0:03:00.1]} 3. d4 {[%clk 0:02:59.9]} 3... cxd4 {[%clk 0:03:00.9]}
4. Nxd4 {[%clk 0:03:00.3]} 4... Nf6 {[%clk 0:03:01.4]} 5. Nc3 {[%clk 0:03:00.7]}
5... g6 {[%clk 0:03:01.6]} 6. Be2 {[%clk 0:02:58.5]} 6... Bg7 {[%clk 0:03:01.4]}
7. O-O {[%clk 0:02:59.1]} 7... O-O {[%clk 0:03:01.7]} 8. Be3 {[%clk 0:02:59.5]}
8... Nc6 {[%clk 0:03:01.2]} 9. Qd2 {[%clk 0:02:59.9]} 9... Bd7 {[%clk
0:02:59.6]} 10. a4 {[%clk 0:02:56]} 10... Nxd4 {[%clk 0:02:56.7]} 11. Bxd4
{[%clk 0:02:55.8]} 11... Bc6 {[%clk 0:02:57.3]} 12. Bf3 {[%clk 0:01:44.7]} 12...
Qa5 {[%clk 0:02:29.9]} 13. Rfd1 {[%clk 0:01:39.9]} 13... Rfe8 {[%clk 0:02:14.9]}
14. Nd5 {[%clk 0:01:18.7]} 14... Qxd2 {[%clk 0:02:12.3]} 15. Rxd2 {[%clk
0:01:18.9]} 15... Bxd5 {[%clk 0:02:08.4]} 16. exd5 {[%clk 0:01:18.7]} 16... Nd7
{[%clk 0:02:07.5]} 17. a5 {[%clk 0:01:15.5]} 17... Bxd4 {[%clk 0:02:01.6]} 18.
Rxd4 {[%clk 0:01:15]} 18... Rac8 {[%clk 0:02:02.3]} 19. c3 {[%clk 0:01:15]}
19... Rc7 {[%clk 0:01:37.6]} 20. Be2 {[%clk 0:01:09.9]} 20... Rec8 {[%clk
0:01:35]} 21. f4 {[%clk 0:01:08.3]} 21... Rc5 {[%clk 0:01:31.4]} 22. c4 {[%clk
0:00:58.9]} 22... R5c7 {[%clk 0:01:19.1]} 23. Re4 {[%clk 0:00:54.2]} 23... Nc5
{[%clk 0:01:15.9]} 24. Re3 {[%clk 0:00:54.5]} 24... Kf8 {[%clk 0:00:58.6]} 25.
g4 {[%clk 0:00:52.8]} 25... h6 {[%clk 0:00:57.2]} 26. h4 {[%clk 0:00:52.3]}
26... Nd7 {[%clk 0:00:55.3]} 27. b3 {[%clk 0:00:48.1]} 27... Nf6 {[%clk
0:00:51.6]} 28. g5 {[%clk 0:00:47.7]} 28... hxg5 {[%clk 0:00:50.9]} 29. hxg5
{[%clk 0:00:48]} 29... Nd7 {[%clk 0:00:51.1]} 30. Kf2 {[%clk 0:00:44.4]} 30...
Nc5 {[%clk 0:00:31]} 31. Bg4 {[%clk 0:00:42.9]} 31... Re8 {[%clk 0:00:29.2]} 32.
Rh1 {[%clk 0:00:41.4]} 32... e6 {[%clk 0:00:27.3]} 33. dxe6 {[%clk 0:00:33.1]}
33... Nxe6 {[%clk 0:00:25.5]} 34. Rh8+ {[%clk 0:00:31.7]} 34... Ke7 {[%clk
0:00:25.6]} 35. Rxe8+ {[%clk 0:00:31.2]} 35... Kxe8 {[%clk 0:00:26]} 36. Bxe6
{[%clk 0:00:31.6]} 36... fxe6 {[%clk 0:00:26.3]} 37. Rxe6+ {[%clk 0:00:31.9]}
37... Kf7 {[%clk 0:00:26.6]} 38. Rxd6 {[%clk 0:00:31.7]} 38... Re7 {[%clk
0:00:25.1]} 39. Kf3 {[%clk 0:00:28]} 39... Kg7 {[%clk 0:00:24.9]} 40. b4 {[%clk
0:00:27]} 40... Kf7 {[%clk 0:00:24.5]} 41. c5 {[%clk 0:00:26.2]} 41... Kg7
{[%clk 0:00:23.9]} 42. Kg4 {[%clk 0:00:25.2]} 42... Kf7 {[%clk 0:00:23.8]} 43.
Kf3 {[%clk 0:00:24.2]} 43... Kg7 {[%clk 0:00:24]} 44. b5 {[%clk 0:00:24.1]}
44... Kf7 {[%clk 0:00:23.9]} 45. c6 {[%clk 0:00:24]} 45... bxc6 {[%clk
0:00:24.2]} 46. Rxc6 {[%clk 0:00:23.8]} 46... Rb7 {[%clk 0:00:24.2]} 47. b6
{[%clk 0:00:23.6]} 47... axb6 {[%clk 0:00:24.3]} 48. axb6 {[%clk 0:00:23.7]}
48... Rd7 {[%clk 0:00:21.3]} 49. Rc7 {[%clk 0:00:23.5]} 49... Ke6 {[%clk
0:00:20.5]} 50. Rxd7 {[%clk 0:00:22.5]} 50... Kxd7 {[%clk 0:00:20.7]} 51. f5
{[%clk 0:00:23.1]} 51... gxf5 {[%clk 0:00:21]} 52. g6 {[%clk 0:00:23.7]} 1-0